bitfinex-derivatives/quotes_ETHF0:USTF0_20241105
["timestamp","ask_amount","ask_price","bid_price","bid_amount"]
[1730788161007,0.425,2426.3,2426.2,1.67550173]
[1730788161502,0.83737,2426.3,2426.2,1.67550173]
[1730788163895,0.83737,2426.3,2426.2,0.87949]
[1730788164208,0.83737,2426.3,2426.2,1.67557606]
[1730788165596,0.4403,2426.4,2426.2,1.26318606]
[1730788165797,1.4852886,2426.4,2426.3,1.20845606]
[1730788167811,0.4529,2426.5,2426.4,0.41235]
[1730788168011,1.9381886,2426.5,2426.4,1.20843606]
[1730788171413,1.9381886,2426.5,2426.4,0.41235]
[1730788171612,1.9381886,2426.5,2426.4,1.20862645]
[1730788173317,1.4852886,2426.7,2426.4,5.82879437]
[1730788173518,1.8975986,2426.7,2426.6,0.41232]
[1730788173816,1.8975986,2426.7,2426.6,1.20859645]
[1730788175424,1.4852886,2426.7,2426.6,1.20859645]
[1730788177624,1.4852886,2426.7,2426.6,2.11933348]
[1730788178025,1.9506886,2426.9,2426.8,0.41229]
[1730788178222,1.9506886,2426.9,2426.8,1.20856645]
[1730788178919,1.9506886,2426.9,2426.8,0.41229]
[1730788179125,1.9506886,2426.9,2426.8,1.20830682]
[1730788182418,2.3629586,2426.9,2426.8,1.20830682]
[1730788182730,2.3629586,2426.9,2426.8,0.63909408]
[1730788182932,2.3629586,2426.9,2426.8,1.20795394]
[1730788184033,2.3629586,2426.9,2426.8,0.63909408]
[1730788186428,2.3629586,2426.9,2426.8,0.63902338]
[1730788188630,1.9506886,2426.9,2426.8,0.63902338]
[1730788189526,2.3629586,2426.9,2426.8,0.63902338]
[1730788189723,1.9506886,2426.9,2426.8,0.63902338]
[1730788190132,1.9506886,2426.9,2426.8,0.63895571]
[1730788190435,0.4654,2426.9,2426.8,0.63895571]
[1730788190635,1.9506886,2426.9,2426.8,0.63895571]
[1730788192528,1.9506886,2426.9,2426.8,1.20740133]
[1730788192730,1.9506886,2426.9,2426.8,0.63895571]
[1730788193032,1.4852886,2426.9,2426.8,0.63895571]
[1730788193831,1.4852886,2426.9,2426.8,1.20737169]
[1730788194440,1.9459886,2427.0,2426.9,0.41227]
[1730788194641,1.9459886,2427.0,2426.9,1.06533571]
[1730788194930,1.9459886,2427.0,2426.9,1.63368625]
[1730788195136,0.4479,2427.1,2427.0,0.41225]
[1730788195938,0.4479,2427.1,2427.0,0.63880121]
[1730788196139,0.4479,2427.1,2427.0,0.41225]
[1730788197835,1.9403886,2427.2,2427.1,0.41224]
[1730788198037,0.4551,2427.2,2427.1,0.41224]
[1730788198230,0.4551,2427.2,2427.1,0.63876117]
[1730788198935,5.95831577,2427.3,2427.2,0.41222]
[1730788199141,6.00031577,2427.3,2427.2,0.41222]
[1730788200340,2.3588386,2427.6,2427.3,0.4122]
[1730788200647,3.2651386,2427.6,2427.5,0.41217]
[1730788200951,0.9063,2427.6,2427.5,0.41217]
[1730788201145,3.2078,2427.7,2427.6,0.41215]
[1730788201957,0.4524,2427.8,2427.7,0.41213]
[1730788203246,1.4852886,2427.9,2427.8,0.41212]
[1730788204047,0.9063,2428.0,2427.9,0.4121]
[1730788204346,0.096,2428.4,2427.9,7.7851]
[1730788204544,4.31143491,2428.5,2428.4,0.41202]
[1730788205250,1.9397886,2428.6,2428.5,0.412]
[1730788210351,0.4545,2428.6,2428.5,3.6198]
[1730788210542,0.4633,2428.7,2428.5,7.3254]
[1730788210745,0.4378,2428.9,2428.8,0.41195]
[1730788210948,0.8992,2428.9,2428.8,0.41195]
[1730788212842,3.2078,2429.1,2428.8,1.4852886]
[1730788213145,3.2078,2429.1,2429.0,0.41191]
[1730788213351,3.2253586,2429.3,2429.0,0.4119]
[1730788213547,3.2253586,2429.3,2428.9,0.9094]
[1730788213548,3.2253586,2429.3,2429.1,0.41189]
[1730788213946,3.2253586,2429.3,2428.6,3.3038]
[1730788213947,0.4119,2429.1,2428.6,3.3038]
[1730788214251,1.4852886,2428.7,2428.6,0.41198]
[1730788214552,45.4930886,2428.9,2428.8,0.41195]
[1730788214748,4.6930886,2428.9,2428.8,0.41195]
[1730788215452,3.2078,2428.9,2428.8,0.41195]
[1730788215849,3.2078,2428.9,2428.8,0.83875]
[1730788216244,1.4852886,2429.2,2429.1,0.4119]
[1730788216450,1.8971686,2429.2,2429.1,0.4119]
[1730788216642,1.4852886,2429.2,2428.8,0.4268]
[1730788216846,1.4852886,2429.2,2429.1,0.4119]
[1730788216847,1.8971786,2429.2,2429.1,0.4119]
[1730788217045,1.8971786,2429.2,2429.0,0.4119]
[1730788217558,1.8971686,2429.2,2429.1,0.4119]
[1730788217758,1.8971686,2429.2,2429.0,0.4119]
[1730788218050,1.4852886,2429.2,2429.1,0.4119]
[1730788219553,1.8971686,2429.2,2429.1,0.4119]
[1730788220148,1.4852886,2429.2,2429.1,0.4119]
[1730788221552,0.8742,2429.3,2429.2,0.41188]
[1730788221746,6.1598886,2429.7,2429.1,1.4852886]
[1730788221950,1.29271,2429.6,2429.5,0.41182]
[1730788222257,1.29271,2429.6,2429.2,1.3268]
[1730788222459,1.29271,2429.6,2429.5,0.41183]
[1730788222754,0.41183,2429.5,2429.4,0.41184]
[1730788223150,0.8809,2429.6,2429.5,0.41183]
[1730788223753,0.8809,2429.6,2429.2,4.5346]
[1730788223952,2.3661886,2429.6,2429.4,0.41184]
[1730788224148,0.41183,2429.5,2429.4,0.41184]
[1730788224352,2.7780086,2429.6,2429.4,0.41184]
[1730788224757,2.3661886,2429.6,2429.5,0.41183]
[1730788224955,2.7779986,2429.6,2429.5,0.41183]
[1730788225460,0.8809,2429.6,2429.5,0.41183]
[1730788226360,0.096,2429.9,2429.5,7.3238]
[1730788226666,0.41177,2429.9,2429.7,0.41178]
[1730788227758,0.41177,2429.9,2429.8,0.41178]
[1730788228861,0.9181,2430.0,2429.8,0.41178]
[1730788229067,1.32986,2430.0,2429.9,0.41176]
[1730788229654,0.9181,2430.0,2429.9,0.41176]
[1730788229958,1.32984,2430.0,2429.9,0.41176]
[1730788230159,0.9181,2430.0,2429.8,0.41177]
[1730788230361,1.32986,2430.0,2429.8,0.41177]
[1730788230760,0.41176,2429.9,2429.8,0.41177]
[1730788232563,1.32986,2430.0,2429.8,0.41177]
[1730788232863,0.41176,2429.9,2429.8,0.41177]
[1730788233560,0.41176,2429.9,2429.6,2.3683886]
[1730788233561,1.32985,2430.0,2429.9,0.41176]
[1730788233867,0.9181,2430.0,2429.9,0.41176]
[1730788234761,1.32985,2430.0,2429.9,0.41176]
[1730788234961,0.9181,2430.0,2429.9,0.41176]
[1730788235557,0.096,2430.3,2430.2,0.41171]
[1730788235763,4.48269,2430.4,2430.2,1.4852886]
[1730788236066,4.48268,2430.4,2430.3,0.41169]
[1730788236364,4.48269,2430.4,2430.2,1.4852886]
[1730788236565,4.48269,2430.4,2430.3,0.41169]
[1730788236968,2.06504,2430.8,2430.3,5.5996886]
[1730788236969,0.096,2430.8,2430.3,5.5996886]
[1730788237162,0.454,2430.8,2430.7,1.8969186]
[1730788237361,0.86561,2430.8,2430.7,1.4852886]
[1730788237566,0.86561,2430.8,2430.6,1.8969186]
[1730788238061,0.4268,2430.7,2430.6,1.8969186]
[1730788239558,4.95284,2430.7,2430.5,0.41165]
[1730788239759,0.4268,2430.7,2430.6,0.41164]
[1730788242272,0.4268,2430.7,2430.5,4.6930886]
[1730788242471,0.83843,2430.7,2430.5,5.1047286]
[1730788242770,0.83843,2430.7,2430.6,0.41164]
[1730788242961,0.4268,2430.7,2430.6,0.41164]
[1730788246374,0.41164,2430.6,2430.5,3.61945]
[1730788246568,0.4686,2430.6,2430.5,3.61945]
[1730788246768,0.88024,2430.6,2430.5,3.61945]
[1730788246963,0.4686,2430.6,2430.5,3.61945]
[1730788247168,0.4686,2430.6,2430.5,5.1047386]
[1730788247574,0.4686,2430.6,2430.5,3.61945]
[1730788248269,0.4686,2430.6,2430.5,0.41165]
[1730788248875,0.4686,2430.6,2430.5,1.8969386]
[1730788251877,0.4268,2430.7,2430.6,0.41164]
[1730788252382,3.3038,2431.1,2431.0,0.41157]
[1730788252383,0.096,2431.1,2431.0,0.41157]
[1730788252581,0.4617,2431.1,2431.0,0.41157]
[1730788254575,0.4567,2431.4,2431.0,0.4401]
[1730788254781,0.931,2431.5,2431.3,1.4852886]
[1730788255077,0.4617,2431.5,2431.4,3.61931]
[1730788255478,0.87319,2431.5,2431.4,3.61931]
[1730788255786,0.4617,2431.5,2431.4,3.61931]
[1730788257180,0.87319,2431.5,2431.4,3.2078]
[1730788257386,0.87319,2431.5,2431.4,3.61931]
[1730788257687,0.87319,2431.5,2431.4,3.2078]
[1730788259582,0.4617,2431.5,2431.3,1.8967986]
[1730788259885,0.41151,2431.4,2431.3,5.1045986]
[1730788260286,0.41151,2431.4,2431.3,4.6930886]
[1730788260887,0.41151,2431.4,2431.3,5.1046086]
[1730788261189,0.4617,2431.5,2431.0,3.2078]
[1730788261488,0.41155,2431.2,2431.1,0.41155]
[1730788261689,0.41155,2431.2,2431.0,5.1046486]
[1730788261881,0.4685,2431.1,2431.0,5.1046486]
[1730788262800,0.4685,2431.1,2431.0,5.1046586]
[1730788264994,0.88006,2431.1,2431.0,5.1046586]
[1730788265291,0.4685,2431.1,2431.0,5.1046586]
[1730788265991,0.88006,2431.1,2431.0,5.1046586]
[1730788266583,0.4685,2431.1,2431.0,5.1046586]
[1730788266896,0.88006,2431.1,2431.0,5.1046586]
[1730788267492,0.88006,2431.1,2431.0,4.6930886]
[1730788269193,0.88006,2431.1,2431.0,1.4852886]
[1730788270694,0.88006,2431.1,2431.0,1.8968586]
[1730788270894,0.4685,2431.1,2431.0,1.8968586]
[1730788272596,0.096,2431.6,2431.3,0.41151]
[1730788272597,0.41151,2431.5,2431.3,0.41151]
[1730788272792,0.8755,2431.5,2431.4,1.8967986]
[1730788273398,1.28699,2431.5,2431.4,1.8967986]
[1730788278400,1.28699,2431.5,2431.4,0.41151]
[1730788279309,1.287,2431.5,2431.4,0.41151]
[1730788281910,0.41151,2431.4,2431.3,1.8967986]
[1730788283412,1.287,2431.5,2431.4,0.41151]
[1730788285911,1.287,2431.5,2431.4,1.8967986]
[1730788286107,1.287,2431.5,2431.4,1.4852886]
[1730788286608,1.287,2431.5,2431.4,1.8967986]
[1730788287712,1.287,2431.5,2431.4,1.4852886]
[1730788288312,0.41151,2431.4,2431.3,1.8967986]
[1730788288617,0.8755,2431.5,2431.3,1.4852886]
[1730788288812,0.8755,2431.5,2431.4,1.8967986]
[1730788289208,0.4473,2431.5,2431.4,1.8967986]
[1730788289411,1.31276,2431.7,2431.6,0.41147]
[1730788289611,1.31276,2431.7,2431.6,1.8967586]
[1730788292409,0.85976,2431.7,2431.6,1.8967586]
[1730788292608,0.85976,2431.7,2431.6,1.4852886]
[1730788293921,0.4483,2431.7,2431.5,0.41148]
[1730788294120,0.41147,2431.6,2431.5,0.41148]
[1730788295011,0.41149,2431.5,2431.4,3.2078]
[1730788295207,0.41149,2431.5,2431.4,3.43385131]
[1730788295419,0.41149,2431.5,2431.4,3.2078]
[1730788296610,0.41149,2431.5,2431.4,3.43395707]
[1730788297512,0.41149,2431.5,2431.4,4.91924567]
[1730788297712,0.41149,2431.5,2431.4,5.89806515]
[1730788297909,4.52429,2431.5,2431.4,3.29527655]
[1730788298109,4.52429,2431.5,2431.4,2.72801127]
[1730788300214,8.8058886,2431.5,2431.0,0.096]
[1730788300417,0.41161,2430.9,2430.7,0.41162]
[1730788300620,0.41161,2430.8,2430.7,0.41162]
[1730788300820,3.2078,2430.9,2430.5,0.3449]
[1730788301021,0.41163,2430.7,2430.6,0.41164]
[1730788301317,3.2078,2430.9,2430.5,0.75655]
[1730788301522,0.41164,2430.7,2430.6,1.61484226]
[1730788301725,0.41163,2430.7,2430.6,2.02647226]
[1730788301925,0.41163,2430.7,2430.6,1.61484226]
[1730788302318,0.41163,2430.7,2430.6,2.02648226]
[1730788302617,0.41163,2430.7,2430.6,1.61484226]
[1730788302925,0.41163,2430.7,2430.6,0.41164]
[1730788303925,0.41164,2430.6,2430.5,0.3449]
[1730788304127,0.41164,2430.6,2430.5,0.75656]
[1730788304620,0.41164,2430.6,2430.5,2.90968302]
[1730788304817,0.41164,2430.6,2430.5,0.75656]
[1730788306118,0.41164,2430.7,2430.5,0.75656]
[1730788307323,0.41164,2430.6,2430.5,0.75656]
[1730788307529,0.41167,2430.5,2430.3,0.8689]
[1730788307722,0.41168,2430.4,2430.3,0.437]
[1730788307923,0.41169,2430.3,2430.2,0.4313]
[1730788308519,0.4364,2430.4,2430.0,1.95399559]
[1730788308723,0.41172,2430.2,2430.0,2.36572559]
[1730788308917,0.41172,2430.2,2430.1,0.41173]
[1730788309126,0.4364,2430.4,2430.0,2.36573559]
[1730788309326,0.41171,2430.3,2430.1,0.41172]
[1730788309633,0.41169,2430.3,2430.1,0.41173]
[1730788309928,0.41172,2430.2,2430.0,2.36572559]
[1730788310430,0.4364,2430.4,2430.0,2.36572559]
[1730788310924,0.4364,2430.4,2430.1,0.41173]
[1730788311120,0.41171,2430.2,2430.1,0.41173]
[1730788312625,0.41173,2430.1,2430.0,2.36573559]
[1730788312827,0.41172,2430.2,2430.0,2.36573559]
[1730788313024,0.4364,2430.4,2430.0,1.95399559]
[1730788313228,0.4364,2430.4,2430.1,0.41172]
[1730788313524,0.41171,2430.2,2430.1,0.41172]
[1730788315434,0.41171,2430.2,2430.1,0.41173]
[1730788316031,0.41171,2430.2,2430.0,0.876]
[1730788316334,0.41171,2430.2,2430.0,1.28773]
[1730788316537,0.4364,2430.4,2430.0,1.28773]
[1730788316741,0.41173,2430.2,2430.0,1.28773]
[1730788316928,0.41173,2430.2,2430.0,0.876]
[1730788317128,0.41173,2430.2,2430.1,0.41173]
[1730788321834,0.41173,2430.2,2430.0,0.876]
[1730788321835,0.4117,2430.3,2430.2,0.4117]
[1730788322053,0.84809,2430.4,2430.3,0.4409]
[1730788322335,0.84809,2430.4,2430.3,0.8773]
[1730788328736,0.4364,2430.4,2430.3,0.8773]
[1730788328943,0.4364,2430.4,2430.3,1.28899]
[1730788329132,0.41167,2430.5,2430.3,0.8773]
[1730788329339,0.096,2430.9,2430.4,1.9143886]
[1730788329639,0.41164,2430.7,2430.6,0.41164]
[1730788329844,0.41165,2430.6,2430.5,0.41165]
[1730788330037,1.4852886,2430.7,2430.4,0.4291]
[1730788330250,0.41166,2430.5,2430.4,0.84078]
[1730788330944,0.41166,2430.5,2430.4,0.4291]
[1730788331140,1.4852886,2430.6,2430.3,0.8773]
[1730788331442,1.4852886,2430.6,2430.0,0.85353]
[1730788331443,0.41173,2430.1,2430.0,0.85353]
[1730788331635,0.41173,2430.1,2430.0,1.3013]
[1730788332439,0.41173,2430.1,2430.0,1.71304]
[1730788338640,0.4535,2430.3,2430.0,1.3013]
[1730788338842,3.672,2430.4,2430.0,1.3013]
[1730788339140,0.4117,2430.3,2430.2,0.4117]
[1730788339840,3.672,2430.4,2430.0,1.3013]
[1730788340040,0.4117,2430.3,2430.2,0.4117]
[1730788340646,0.41172,2430.2,2430.1,0.41171]
[1730788342051,0.41171,2430.3,2430.2,0.4117]
[1730788343137,0.4642,2430.4,2430.0,1.3013]
[1730788343341,0.41172,2430.2,2430.1,0.41172]
[1730788343846,0.4117,2430.3,2430.2,0.4117]
[1730788345149,0.4117,2430.3,2430.2,0.63755316]
[1730788345448,0.4117,2430.3,2430.2,0.22585316]
[1730788345650,0.41173,2430.1,2430.0,0.8775]
[1730788345841,1.8970186,2430.1,2430.0,0.22587395]
[1730788346042,0.41179,2429.7,2429.6,1.28741]
[1730788346352,0.41179,2429.7,2429.6,2.55914741]
[1730788346547,1.8970786,2429.7,2429.6,0.7866487]
[1730788346743,5.6012886,2429.7,2429.3,0.4677]
[1730788346948,0.41185,2429.4,2429.3,0.87956]
[1730788347148,0.41185,2429.4,2429.3,1.44012285]
[1730788347345,0.41185,2429.4,2429.3,0.87956]
[1730788347746,0.41185,2429.4,2429.3,1.43991968]
[1730788347950,5.1049286,2429.5,2429.3,0.87956]
[1730788348952,0.41185,2429.4,2429.3,0.4677]
[1730788349151,1.4852886,2429.4,2429.1,1.08004519]
[1730788349447,1.4852886,2429.4,2429.1,1.49193519]
[1730788349659,0.41188,2429.2,2429.1,1.49193519]
[1730788350044,0.41188,2429.2,2429.1,1.08004519]
[1730788350453,1.8971686,2429.2,2429.1,1.08004519]
[1730788350842,1.8971686,2429.2,2429.1,1.49194519]
[1730788351349,1.8971686,2429.2,2429.1,1.08004519]
[1730788351947,1.8971586,2429.3,2429.1,1.49194519]
[1730788353154,1.8971586,2429.3,2429.1,1.08004519]
[1730788353449,1.8971586,2429.3,2429.1,1.49193519]
[1730788353755,1.8971586,2429.3,2429.1,0.41189]
[1730788354442,1.8971586,2429.3,2429.1,0.85949]
[1730788355251,1.8971586,2429.3,2429.2,0.41188]
[1730788356149,0.41185,2429.4,2429.3,0.41185]
[1730788356347,3.61964,2429.5,2429.4,0.41185]
[1730788356657,3.61964,2429.5,2429.3,0.41185]
[1730788356658,0.41184,2429.5,2429.3,0.41185]
[1730788356860,0.41184,2429.5,2429.4,0.4488]
[1730788358356,5.5842886,2429.6,2429.4,0.4488]
[1730788358551,0.41183,2429.5,2429.4,0.86064]
[1730788359153,4.099,2429.6,2429.4,0.4488]
[1730788359353,1.8971186,2429.5,2429.4,0.4488]
[1730788359565,1.8971186,2429.5,2429.4,0.86065]
[1730788360458,1.8971186,2429.5,2429.4,0.4488]
[1730788360956,0.41185,2429.4,2429.3,0.41186]
[1730788361157,1.8971386,2429.4,2429.3,0.41186]
[1730788361353,1.4852886,2429.4,2429.3,0.41186]
[1730788361554,1.8971386,2429.4,2429.3,0.41186]
[1730788362065,1.4852886,2429.4,2429.3,0.41186]
[1730788362560,1.8971386,2429.4,2429.3,0.41186]
[1730788363160,1.4852886,2429.4,2429.3,0.41186]
[1730788363360,5.9961086,2429.6,2429.4,0.41183]
[1730788363655,0.41183,2429.5,2429.4,0.41183]
[1730788365549,0.41185,2429.4,2429.3,0.88145]
[1730788365746,0.41184,2429.5,2429.4,0.41184]
[1730788366562,2.3764886,2429.6,2429.3,0.88145]
[1730788366858,0.41184,2429.5,2429.4,0.41185]
[1730788367259,0.41185,2429.4,2429.3,0.88145]
[1730788367460,0.41184,2429.5,2429.4,0.41184]
[1730788370957,5.5842886,2429.6,2429.3,0.4696]
[1730788371155,0.41185,2429.4,2429.3,0.88146]
[1730788373269,0.41188,2429.2,2429.1,0.85949]
[1730788374070,0.4666,2429.3,2429.2,0.41188]
[1730788374265,0.4666,2429.3,2429.2,0.86908]
[1730788374573,4.6930886,2429.4,2429.2,0.4572]
[1730788374767,3.2078,2429.4,2429.3,0.41186]
[1730788375167,3.2078,2429.4,2429.3,4.52786]
[1730788378466,3.2078,2429.4,2429.3,0.41186]
[1730788378868,1.4852886,2429.5,2429.2,0.4572]
[1730788379071,1.4852886,2429.5,2429.4,0.41185]
[1730788380373,1.8971186,2429.5,2429.4,0.41185]
[1730788380570,1.4852886,2429.5,2429.2,0.4572]
[1730788380776,0.4654,2429.4,2429.3,0.41185]
[1730788381273,2.3625386,2429.4,2429.3,0.41185]
[1730788381569,2.3625386,2429.4,2429.2,0.4572]
[1730788381570,0.41186,2429.3,2429.2,0.4572]
[1730788382171,1.9506886,2429.4,2429.1,0.85948]
[1730788382377,0.41188,2429.2,2429.1,0.85948]
[1730788382566,1.9506886,2429.4,2429.1,0.85948]
[1730788382767,0.41187,2429.3,2429.2,0.41187]
[1730788383269,1.9506886,2429.4,2429.0,4.05021]
[1730788383469,0.4119,2429.1,2429.0,4.05021]
[1730788383870,0.4503,2429.1,2429.0,4.05021]
[1730788384478,0.4503,2429.1,2429.0,0.84241]
[1730788386274,0.4503,2429.1,2429.0,1.06761712]
[1730788386479,0.8622,2429.1,2429.0,0.84241]
[1730788386679,0.41191,2429.0,2428.8,0.4423]
[1730788386876,1.4852886,2429.0,2428.9,0.41193]
[1730788387082,1.8971986,2429.0,2428.9,0.41193]
[1730788387674,5.6115886,2429.1,2429.0,0.41191]
[1730788387879,1.9355886,2429.1,2429.0,0.41191]
[1730788388074,2.3474886,2429.1,2429.0,0.41191]
[1730788390292,2.3474886,2429.1,2429.0,0.63736898]
[1730788391088,2.3474886,2429.1,2429.0,0.22545898]
[1730788391287,2.3474886,2429.1,2429.0,1.19817437]
[1730788391492,2.3474886,2429.1,2429.0,0.63736898]
[1730788391993,2.3474886,2429.1,2429.0,0.22545898]
[1730788392391,2.3474886,2429.1,2429.0,0.78638715]
[1730788392589,2.3474886,2429.1,2429.0,0.78658331]
[1730788392794,2.3474886,2429.1,2429.0,0.2256552]
[1730788394291,2.3474886,2429.1,2429.0,0.63755248]
[1730788394689,2.3474886,2429.1,2429.0,0.22564248]
[1730788394996,6.4642886,2429.1,2429.0,0.22564248]
[1730788395789,0.41193,2429.0,2428.8,0.41194]
[1730788395988,1.4852886,2428.9,2428.8,0.41195]
[1730788396188,1.4852886,2428.9,2428.8,1.19838049]
[1730788396587,1.8972186,2428.9,2428.8,1.19838049]
[1730788398398,1.4852886,2428.9,2428.8,1.19838049]
[1730788398598,1.8972086,2429.0,2428.9,0.41193]
[1730788398794,4.07001,2429.1,2429.0,0.41191]
[1730788399000,0.41191,2429.0,2428.9,0.41191]
[1730788399201,0.41191,2429.0,2428.9,0.63745167]
[1730788399498,0.41191,2429.0,2428.9,0.41191]
[1730788399696,1.9355886,2429.1,2429.0,0.41191]
[1730788399894,0.4503,2429.1,2429.0,1.10762596]
[1730788400099,2.3474886,2429.1,2429.0,1.10762596]
[1730788403103,2.3474886,2429.1,2429.0,0.88211]
[1730788403291,2.3474886,2429.1,2429.0,1.10763316]
[1730788403489,0.41193,2429.0,2428.8,0.41195]
[1730788403688,1.4852886,2428.9,2428.8,0.84125]
[1730788403900,1.8972186,2428.9,2428.8,1.62731347]
[1730788406294,1.8972186,2428.9,2428.8,1.40179487]
[1730788406998,1.8972186,2428.9,2428.8,1.06675601]
[1730788407199,1.8972186,2428.9,2428.8,1.62726373]
[1730788408199,1.4852886,2428.9,2428.8,1.62726373]
[1730788409798,1.8972186,2428.9,2428.8,1.62726373]
[1730788410207,1.4852886,2428.9,2428.8,1.62726373]
[1730788412313,2.3474986,2429.1,2429.0,0.41191]
[1730788412714,2.3474986,2429.1,2429.0,0.63740497]
[1730788413815,2.3474986,2429.1,2429.0,0.41191]
[1730788414314,2.3474986,2429.1,2429.0,0.63742071]
[1730788415017,2.3474986,2429.1,2429.0,0.63742309]
[1730788415318,2.3474986,2429.1,2429.0,0.41191]
[1730788415824,2.3474986,2429.1,2429.0,0.63742632]
[1730788416909,2.3474986,2429.1,2429.0,0.22551632]
[1730788417105,0.41191,2429.0,2428.9,0.41192]
[1730788417410,0.41191,2429.0,2428.9,0.63746066]
[1730788417616,2.3474886,2429.1,2429.0,0.41191]
[1730788417819,2.3474886,2429.1,2429.0,0.63745066]
[1730788418517,2.3474886,2429.1,2429.0,0.41191]
[1730788418718,2.3474886,2429.1,2429.0,0.63747837]
[1730788420217,1.9355886,2429.1,2429.0,0.63747837]
[1730788420420,2.3474886,2429.1,2429.0,0.63747837]
[1730788421322,0.5613,2429.4,2429.3,0.41186]
[1730788421616,0.4285,2429.4,2429.3,0.63743772]
[1730788421820,7.51946149,2429.6,2429.5,0.41183]
[1730788422015,7.51946149,2429.6,2429.5,0.63740609]
[1730788422214,7.51946149,2429.6,2429.5,0.63740562]
[1730788422414,7.51946149,2429.6,2429.5,1.08950562]
[1730788422614,7.51946149,2429.6,2429.5,1.65013837]
[1730788423122,7.51946149,2429.6,2429.5,5.76613274]
[1730788423123,4.31166149,2429.6,2429.5,5.76613274]
[1730788423823,6.33590778,2429.7,2429.5,5.35430274]
[1730788424016,6.33590778,2429.7,2429.6,1.66171274]
[1730788424211,6.33590778,2429.7,2429.6,1.10108562]
[1730788424413,6.74769778,2429.7,2429.6,1.66150846]
[1730788424613,6.79720778,2429.7,2429.6,1.66150846]
[1730788424818,7.20899778,2429.7,2429.6,0.63738562]
[1730788425024,7.26360778,2429.7,2429.6,0.63738562]
[1730788425210,2.4129886,2429.7,2429.6,0.63738562]
[1730788425516,1.9465886,2429.7,2429.6,0.63738562]
[1730788425722,1.9465886,2429.7,2429.6,0.41181]
[1730788426020,1.4852886,2429.7,2429.6,0.6372637]
[1730788426216,1.4852886,2429.7,2429.6,0.63726214]
[1730788428222,1.4852886,2429.7,2429.6,0.41181]
[1730788429030,1.4852886,2429.7,2429.6,0.63714113]
[1730788429230,1.4852886,2429.7,2429.6,0.41181]
[1730788434333,1.9457886,2429.7,2429.6,0.41181]
[1730788436542,2.3575786,2429.7,2429.6,0.41181]
[1730788438243,1.9457886,2429.7,2429.5,0.41182]
[1730788438440,1.9202886,2429.6,2428.9,1.17559307]
[1730788438645,1.9202886,2429.6,2429.2,0.41188]
[1730788438646,1.4852886,2429.3,2429.2,0.41188]
[1730788438840,1.4852886,2429.3,2429.2,0.63696832]
[1730788439041,1.9408886,2429.3,2429.2,0.41188]
[1730788442049,2.3527486,2429.3,2429.2,0.41188]
[1730788442546,1.9408886,2429.3,2429.2,0.41188]
[1730788445945,1.9408886,2429.3,2429.1,0.4408]
[1730788446151,0.86649,2429.2,2429.1,0.41189]
[1730788448445,0.4119,2429.1,2429.0,0.41191]
[1730788448646,1.9458886,2429.1,2429.0,0.41191]
[1730788449256,2.3577886,2429.1,2429.0,0.41191]
[1730788449553,1.9458886,2429.1,2429.0,0.41191]
[1730788450545,2.3577886,2429.1,2429.0,0.41191]
[1730788450851,1.9458886,2429.1,2429.0,0.41191]
[1730788451050,2.3577886,2429.1,2429.0,0.41191]
[1730788451660,7.5479772,2429.1,2428.8,0.9258]
[1730788451952,1.8972286,2428.9,2428.8,0.41195]
[1730788452457,0.41195,2428.8,2428.7,0.41195]
[1730788452652,1.8972386,2428.8,2428.7,0.41195]
[1730788455250,1.4852886,2428.9,2428.5,1.346]
[1730788455553,1.4852886,2428.9,2428.8,0.41195]
[1730788455945,1.8972186,2428.9,2428.8,0.41195]
[1730788457354,1.4852886,2428.9,2428.8,0.41195]
[1730788459058,1.8972186,2428.9,2428.8,0.41195]
[1730788459255,0.4326,2429.0,2428.5,4.5538]
[1730788459461,1.4852886,2429.1,2428.6,1.25511411]
[1730788459664,1.4852886,2429.1,2429.0,0.41191]
[1730788460761,1.8971886,2429.1,2429.0,0.41191]
[1730788462157,1.4852886,2429.1,2429.0,0.41191]
[1730788462663,3.6495,2429.3,2429.2,0.41188]
[1730788463049,4.6930886,2429.3,2429.2,0.41188]
[1730788463250,1.4852886,2429.4,2429.3,0.41186]
[1730788463456,1.4852886,2429.4,2429.3,1.72186]
[1730788464860,0.41185,2429.4,2429.3,1.31]
[1730788465163,1.4852886,2429.4,2429.3,1.31]
[1730788465365,1.4852886,2429.4,2429.3,1.72186]
[1730788468153,1.4852886,2429.5,2429.3,1.72186]
[1730788468358,1.4852886,2429.5,2429.4,0.41185]
[1730788468862,4.6930886,2429.6,2429.5,0.41183]
[1730788469564,1.4852886,2429.6,2429.5,0.41183]
[1730788471468,1.8970986,2429.6,2429.5,0.41183]
[1730788471668,0.41183,2429.5,2429.4,0.41184]
[1730788471974,1.4852886,2429.5,2429.4,0.41184]
[1730788472268,1.8971186,2429.5,2429.4,0.41184]
[1730788472459,1.4852886,2429.5,2429.4,0.41184]
[1730788474867,1.4852886,2429.6,2429.3,1.31]
[1730788475166,1.4852886,2429.6,2429.5,0.41183]
[1730788476461,0.8491,2429.7,2429.6,0.41181]
[1730788476661,2.3343886,2429.7,2429.6,0.41181]
[1730788478369,1.9225886,2429.7,2429.6,0.41181]
[1730788479463,2.3343786,2429.7,2429.6,0.41181]
[1730788479865,1.9225886,2429.7,2429.6,0.41181]
[1730788490179,0.4373,2429.7,2429.6,0.41181]
[1730788490586,1.9225886,2429.7,2429.6,0.41181]
[1730788496194,1.9394886,2429.9,2429.8,0.41178]
[1730788496390,0.436,2429.9,2429.8,0.41178]
[1730788496985,1.9212886,2429.9,2429.8,0.41178]
[1730788498291,2.3330486,2429.9,2429.8,0.41178]
[1730788498991,1.9212886,2429.9,2429.8,0.41178]
[1730788499490,1.9212886,2429.9,2429.8,0.63689915]
[1730788500389,2.3330486,2429.9,2429.8,0.22511915]
[1730788500590,2.3330486,2429.9,2429.6,0.4269]
[1730788500591,6.0364886,2429.9,2429.6,0.41181]
[1730788500893,2.8188786,2429.8,2429.4,1.3372]
[1730788501094,1.33359,2429.8,2429.6,0.4118]
[1730788501296,1.4852886,2429.6,2429.5,0.41183]